Workbook

Sheet Hoja1
A1: Item | B1: Semana | C1: Fecha-Corta | D1: D-Let | E1: D-Num | F1: M-Let | G1: A-Num | H1: Fecha-Larga | I1: Documento | J1: Nombres | K1: Pg-Numeros | L1: Entero | M1: Fraccion | N1: Pg-Letras | O1: Concepto | P1: Totales
A2: 10001 | B2: 2018290 | C2: 2018-07-25 | D2: =TEXT($C2,"dddd") -> Miércoles | E2: =TEXT($C2,"dd") -> 25 | F2: =TEXT($C2,"mmmm") -> Julio | G2: =TEXT($C2,"yyyy") -> 2018 | H2: =CONCATENATE(D2," ",E2," de ",F2," del ",G2) -> Miércoles 25 de Julio del 2018 | I2: 09017700 | J2: Andrés Manrique Fernandez | K2: 500 | L2: =INT(K2) -> 500 | M2: =ROUND((K2-INT(K2))*100,2) -> 0 | N2: =UPPER(NumLet(INT(K2))) -> QUINIENTOS | O2: 0A92C
A3: 10002 | B3: 2018290 | C3: 2018-07-25 | D3: Miércoles | E3: 25 | F3: Julio | G3: 2018 | H3: Miércoles 25 de Julio del 2018 | I3: 25486899 | J3: Silvia Tapia de Linares | K3: 141.6 | L3: 141 | M3: =ROUND((K3-INT(K3))*100,2) -> 60 | N3: CIENTO CUARENTA Y UNO | O3: 0A92C
A4: 10003 | B4: 2018290 | C4: 2018-07-25 | D4: Miércoles | E4: 25 | F4: Julio | G4: 2018 | H4: Miércoles 25 de Julio del 2018 | I4: 06177146 | J4: Patricio Montañez Pajuelo | K4: 219 | L4: 219 | M4: 0 | N4: DOSCIENTOS DIECINUEVE | O4: 0A92C
A5: 10004 | B5: 2018290 | C5: 2018-07-25 | D5: =TEXT($C5,"dddd") -> Miércoles | E5: =TEXT($C5,"dd") -> 25 | F5: =TEXT($C5,"mmmm") -> Julio | G5: =TEXT($C5,"yyyy") -> 2018 | H5: =CONCATENATE(D5," ",E5," de ",F5," del ",G5) -> Miércoles 25 de Julio del 2018 | I5: 07747366 | J5: Eduardo Segura Durand | K5: 82.6 | L5: =INT(K5) -> 82 | M5: 60 | N5: OCHENTA Y DOS | O5: 0A92C
A6: 10005 | B6: 2018290 | C6: 2018-07-25 | D6: Miércoles | E6: 25 | F6: Julio | G6: 2018 | H6: =CONCATENATE(D6," ",E6," de ",F6," del ",G6) -> Miércoles 25 de Julio del 2018 | I6: 40346824 | J6: Cesar Mendez Mallqui | K6: 172.9 | L6: =INT(K6) -> 172 | M6: 90 | N6: CIENTO SETENTA Y DOS | O6: 0A92C
A7: 10006 | B7: 2018290 | C7: 2018-07-25 | D7: Miércoles | E7: 25 | F7: Julio | G7: 2018 | H7: Miércoles 25 de Julio del 2018 | I7: 06875877 | J7: Miguel Tejada Llauce | K7: 12 | L7: 12 | M7: 0 | N7: DOCE | O7: 0A92C
A8: 10007 | B8: 2018290 | C8: 2018-07-25 | D8: Miércoles | E8: 25 | F8: Julio | G8: 2018 | H8: Miércoles 25 de Julio del 2018 | I8: 73946962 | J8: Alejandro Dueñas Palacios | K8: 107.5 | L8: 107 | M8: 50 | N8: CIENTO SIETE | O8: 0A92C
A9: 10008 | B9: 2018290 | C9: 2018-07-25 | D9: Miércoles | E9: 25 | F9: Julio | G9: 2018 | H9: Miércoles 25 de Julio del 2018 | I9: 80467819 | J9: Juan Marique Vega | K9: 99.1 | L9: 99 | M9: 10 | N9: NOVENTA Y NUEVE | O9: 0A92C
A10: 10009 | B10: 2018290 | C10: 2018-07-25 | D10: Miércoles | E10: 25 | F10: Julio | G10: 2018 | H10: Miércoles 25 de Julio del 2018 | I10: 45259265 | J10: Irving Huaringa Bustos | K10: 120.1 | L10: 120 | M10: 10 | N10: CIENTO VEINTE | O10: 0A92C
A11: 10010 | B11: 2018290 | C11: 2018-07-25 | D11: Miércoles | E11: 25 | F11: Julio | G11: 2018 | H11: Miércoles 25 de Julio del 2018 | I11: 146339198 | J11: Pedro Hostos Salazar | K11: 66.6 | L11: 66 | M11: 60 | N11: SESENTA Y SEIS | O11: 0A92C
A12: 10011 | B12: 2018290 | C12: 2018-07-25 | D12: Miércoles | E12: 25 | F12: Julio | G12: 2018 | H12: Miércoles 25 de Julio del 2018 | I12: 139521272 | J12: Jose Cortez Pereira | K12: 318.6 | L12: 318 | M12: 60 | N12: TRESCIENTOS DIECIOCHO | O12: 0A92C
A13: 10012 | B13: 2018290 | C13: 2018-07-25 | D13: Miércoles | E13: 25 | F13: Julio | G13: 2018 | H13: Miércoles 25 de Julio del 2018 | I13: 130952792 | J13: Rafael Armas Rivas | K13: 314.8 | L13: 314 | M13: 80 | N13: TRESCIENTOS CATORCE | O13: 0A92C
A14: 10013 | B14: 2018290 | C14: 2018-07-25 | D14: Miércoles | E14: 25 | F14: Julio | G14: 2018 | H14: Miércoles 25 de Julio del 2018 | I14: 118405791 | J14: Jose Ochoa Infante | K14: 318.6 | L14: 318 | M14: 60 | N14: TRESCIENTOS DIECIOCHO | O14: 0A92C
A15: 10014 | B15: 2018300 | C15: 2018-08-02 | D15: Jueves | E15: 02 | F15: Agosto | G15: 2018 | H15: Jueves 02 de Agosto del 2018 | I15: 09017700 | J15: Andrés Manrique Fernandez | K15: 500 | L15: =INT(K15) -> 500 | M15: =ROUND((K15-INT(K15))*100,2) -> 0 | N15: =UPPER(NumLet(INT(K15))) -> QUINIENTOS | O15: 0A933
A16: 10015 | B16: 2018300 | C16: 2018-08-02 | D16: Jueves | E16: 02 | F16: Agosto | G16: 2018 | H16: =CONCATENATE(D16," ",E16," de ",F16," del ",G16) -> Jueves 02 de Agosto del 2018 | I16: 25486899 | J16: Silvia Tapia de Linares | K16: 118.4 | L16: 118 | M16: 40 | N16: CIENTO DIECIOCHO | O16: 0A933
A17: 10016 | B17: 2018300 | C17: 2018-08-02 | D17: Jueves | E17: 02 | F17: Agosto | G17: 2018 | H17: Jueves 02 de Agosto del 2018 | I17: 06177146 | J17: Patricio Montañez Pajuelo | K17: 219 | L17: 219 | M17: 0 | N17: DOSCIENTOS DIECINUEVE | O17: 0A933
A18: 10017 | B18: 2018300 | C18: 2018-08-02 | D18: Jueves | E18: 02 | F18: Agosto | G18: 2018 | H18: Jueves 02 de Agosto del 2018 | I18: 07747366 | J18: Eduardo Segura Durand | K18: 11.5 | L18: 11 | M18: 50 | N18: ONCE | O18: 0A933
A19: 10018 | B19: 2018300 | C19: 2018-08-02 | D19: Jueves | E19: 02 | F19: Agosto | G19: 2018 | H19: Jueves 02 de Agosto del 2018 | I19: 40346824 | J19: Cesar Mendez Mallqui | K19: 291 | L19: 291 | M19: 0 | N19: DOSCIENTOS NOVENTA Y UNO | O19: 0A933
A20: 10019 | B20: 2018300 | C20: 2018-08-02 | D20: Jueves | E20: 02 | F20: Agosto | G20: 2018 | H20: Jueves 02 de Agosto del 2018 | I20: 73946962 | J20: Alejandro Dueñas Palacios | K20: 215.5 | L20: 215 | M20: 50 | N20: DOSCIENTOS QUINCE | O20: 0A933
A21: 10020 | B21: 2018300 | C21: 2018-08-02 | D21: Jueves | E21: 02 | F21: Agosto | G21: 2018 | H21: Jueves 02 de Agosto del 2018 | I21: 80467819 | J21: Juan Marique Vega | K21: 100.3 | L21: 100 | M21: 30 | N21: CIEN | O21: 0A933
A22: 10021 | B22: 2018300 | C22: 2018-08-02 | D22: Jueves | E22: 02 | F22: Agosto | G22: 2018 | H22: Jueves 02 de Agosto del 2018 | I22: 45259265 | J22: Irving Huaringa Bustos | K22: 86.4 | L22: 86 | M22: 40 | N22: OCHENTA Y SEIS | O22: 0A933
A23: 10022 | B23: 2018300 | C23: 2018-08-02 | D23: Jueves | E23: 02 | F23: Agosto | G23: 2018 | H23: Jueves 02 de Agosto del 2018 | I23: 146339198 | J23: Pedro Hostos Salazar | K23: 190.8 | L23: 190 | M23: 80 | N23: CIENTO NOVENTA | O23: 0A933
A24: 10023 | B24: 2018300 | C24: 2018-08-02 | D24: Jueves | E24: 02 | F24: Agosto | G24: 2018 | H24: Jueves 02 de Agosto del 2018 | I24: 06875877 | J24: Miguel Tejada Llauce | K24: 307.5 | L24: 307 | M24: 50 | N24: TRESCIENTOS SIETE | O24: 0A933
A25: 10024 | B25: 2018300 | C25: 2018-08-02 | D25: Jueves | E25: 02 | F25: Agosto | G25: 2018 | H25: Jueves 02 de Agosto del 2018 | I25: 139521272 | J25: Jose Cortez Pereira | K25: 407.8 | L25: 407 | M25: 80 | N25: CUATROCIENTOS SIETE | O25: 0A933
A26: 10025 | B26: 2018300 | C26: 2018-08-02 | D26: Jueves | E26: 02 | F26: Agosto | G26: 2018 | H26: Jueves 02 de Agosto del 2018 | I26: 130952792 | J26: Rafael Armas Rivas | K26: 376.8 | L26: 376 | M26: 80 | N26: TRESCIENTOS SETENTA Y SEIS | O26: 0A933
A27: 10026 | B27: 2018300 | C27: 2018-08-02 | D27: Jueves | E27: 02 | F27: Agosto | G27: 2018 | H27: Jueves 02 de Agosto del 2018 | I27: 118405791 | J27: Jose Ochoa Infante | K27: 326.3 | L27: 326 | M27: 30 | N27: TRESCIENTOS VEINTISEIS | O27: 0A933 | P27: =SUM(K15:K27) -> 3151.3
A28: 10027 | B28: 2018310 | C28: 2018-08-09 | D28: Jueves | E28: 09 | F28: Agosto | G28: 2018 | H28: Jueves 09 de Agosto del 2018 | I28: 09017700 | J28: Andrés Manrique Fernandez | K28: 500 | L28: =INT(K28) -> 500 | M28: =ROUND((K28-INT(K28))*100,2) -> 0 | N28: =UPPER(NumLet(INT(K28))) -> QUINIENTOS | O28: 0A93A
A29: 10028 | B29: 2018310 | C29: 2018-08-09 | D29: Jueves | E29: 09 | F29: Agosto | G29: 2018 | H29: =CONCATENATE(D29," ",E29," de ",F29," del ",G29) -> Jueves 09 de Agosto del 2018 | I29: 25486899 | J29: Silvia Tapia de Linares | K29: 130.9 | L29: 130 | M29: 90 | N29: CIENTO TREINTA | O29: 0A93A
A30: 10029 | B30: 2018310 | C30: 2018-08-09 | D30: Jueves | E30: 09 | F30: Agosto | G30: 2018 | H30: Jueves 09 de Agosto del 2018 | I30: 06177146 | J30: Patricio Montañez Pajuelo | K30: 219 | L30: 219 | M30: 0 | N30: DOSCIENTOS DIECINUEVE | O30: 0A93A
A31: 10030 | B31: 2018310 | C31: 2018-08-09 | D31: Jueves | E31: 09 | F31: Agosto | G31: 2018 | H31: Jueves 09 de Agosto del 2018 | I31: 07747366 | J31: Eduardo Segura Durand | K31: 91.7 | L31: 91 | M31: 70 | N31: NOVENTA Y UNO | O31: 0A93A
A32: 10031 | B32: 2018310 | C32: 2018-08-09 | D32: Jueves | E32: 09 | F32: Agosto | G32: 2018 | H32: Jueves 09 de Agosto del 2018 | I32: 40346824 | J32: Cesar Mendez Mallqui | K32: 330.9 | L32: 330 | M32: 90 | N32: TRESCIENTOS TREINTA | O32: 0A93A
A33: 10032 | B33: 2018310 | C33: 2018-08-09 | D33: Jueves | E33: 09 | F33: Agosto | G33: 2018 | H33: Jueves 09 de Agosto del 2018 | I33: 73946962 | J33: Alejandro Dueñas Palacios | K33: 469.7 | L33: 469 | M33: 70 | N33: CUATROCIENTOS SESENTA Y NUEVE | O33: 0A93A
A34: 10033 | B34: 2018310 | C34: 2018-08-09 | D34: Jueves | E34: 09 | F34: Agosto | G34: 2018 | H34: Jueves 09 de Agosto del 2018 | I34: 80467819 | J34: Juan Marique Vega | K34: 99.1 | L34: 99 | M34: 10 | N34: NOVENTA Y NUEVE | O34: 0A93A
A35: 10034 | B35: 2018310 | C35: 2018-08-09 | D35: Jueves | E35: 09 | F35: Agosto | G35: 2018 | H35: Jueves 09 de Agosto del 2018 | I35: 45259265 | J35: Irving Huaringa Bustos | K35: 109.8 | L35: 109 | M35: 80 | N35: CIENTO NUEVE | O35: 0A93A
A36: 10035 | B36: 2018310 | C36: 2018-08-09 | D36: Jueves | E36: 09 | F36: Agosto | G36: 2018 | H36: Jueves 09 de Agosto del 2018 | I36: 146339198 | J36: Pedro Hostos Salazar | K36: 51.1 | L36: 51 | M36: 10 | N36: CINCUENTA Y UNO | O36: 0A93A
A37: 10036 | B37: 2018310 | C37: 2018-08-09 | D37: Jueves | E37: 09 | F37: Agosto | G37: 2018 | H37: Jueves 09 de Agosto del 2018 | I37: 06875877 | J37: Miguel Tejada Llauce | K37: 264.7 | L37: 264 | M37: 70 | N37: DOSCIENTOS SESENTA Y CUATRO | O37: 0A93A
A38: 10037 | B38: 2018310 | C38: 2018-08-09 | D38: Jueves | E38: 09 | F38: Agosto | G38: 2018 | H38: Jueves 09 de Agosto del 2018 | I38: 139521272 | J38: Jose Cortez Pereira | K38: 349.6 | L38: 349 | M38: 60 | N38: TRESCIENTOS CUARENTA Y NUEVE | O38: 0A93A
A39: 10038 | B39: 2018310 | C39: 2018-08-09 | D39: Jueves | E39: 09 | F39: Agosto | G39: 2018 | H39: Jueves 09 de Agosto del 2018 | I39: 130952792 | J39: Rafael Armas Rivas | K39: 341.9 | L39: 341 | M39: 90 | N39: TRESCIENTOS CUARENTA Y UNO | O39: 0A93A
A40: 10039 | B40: 2018310 | C40: 2018-08-09 | D40: Jueves | E40: 09 | F40: Agosto | G40: 2018 | H40: Jueves 09 de Agosto del 2018 | I40: 118405791 | J40: Jose Ochoa Infante | K40: 353.5 | L40: 353 | M40: 50 | N40: TRESCIENTOS CINCUENTA Y TRES | O40: 0A93A | P40: =SUM(K28:K40) -> 3311.9
A41: 10040 | B41: 2018320 | C41: 2018-08-16 | D41: Jueves | E41: 16 | F41: Agosto | G41: 2018 | H41: Jueves 16 de Agosto del 2018 | I41: 09017700 | J41: Andrés Manrique Fernandez | K41: 500 | L41: =INT(K41) -> 500 | M41: =ROUND((K41-INT(K41))*100,2) -> 0 | N41: =UPPER(NumLet(INT(K41))) -> QUINIENTOS | O41: 0A941
A42: 10041 | B42: 2018320 | C42: 2018-08-16 | D42: Jueves | E42: 16 | F42: Agosto | G42: 2018 | H42: =CONCATENATE(D42," ",E42," de ",F42," del ",G42) -> Jueves 16 de Agosto del 2018 | I42: 25486899 | J42: Silvia Tapia de Linares | K42: 133.2 | L42: 133 | M42: 20 | N42: CIENTO TREINTA Y TRES | O42: 0A941
A43: 10042 | B43: 2018320 | C43: 2018-08-16 | D43: Jueves | E43: 16 | F43: Agosto | G43: 2018 | H43: Jueves 16 de Agosto del 2018 | I43: 06177146 | J43: Patricio Montañez Pajuelo | K43: 219 | L43: 219 | M43: 0 | N43: DOSCIENTOS DIECINUEVE | O43: 0A941
A44: 10043 | B44: 2018320 | C44: 2018-08-16 | D44: Jueves | E44: 16 | F44: Agosto | G44: 2018 | H44: Jueves 16 de Agosto del 2018 | I44: 07747366 | J44: Eduardo Segura Durand | K44: 96.2 | L44: 96 | M44: 20 | N44: NOVENTA Y SEIS | O44: 0A941
A45: 10044 | B45: 2018320 | C45: 2018-08-16 | D45: Jueves | E45: 16 | F45: Agosto | G45: 2018 | H45: Jueves 16 de Agosto del 2018 | I45: 40346824 | J45: Cesar Mendez Mallqui | K45: 75.3 | L45: 75 | M45: 30 | N45: SETENTA Y CINCO | O45: 0A941
A46: 10045 | B46: 2018320 | C46: 2018-08-16 | D46: Jueves | E46: 16 | F46: Agosto | G46: 2018 | H46: Jueves 16 de Agosto del 2018 | I46: 73946962 | J46: Alejandro Dueñas Palacios | K46: 221.6 | L46: 221 | M46: 60 | N46: DOSCIENTOS VEINTIUNO | O46: 0A941
A47: 10046 | B47: 2018320 | C47: 2018-08-16 | D47: Jueves | E47: 16 | F47: Agosto | G47: 2018 | H47: Jueves 16 de Agosto del 2018 | I47: 80467819 | J47: Juan Marique Vega | K47: 119.7 | L47: 119 | M47: 70 | N47: CIENTO DIECINUEVE | O47: 0A941
A48: 10047 | B48: 2018320 | C48: 2018-08-16 | D48: Jueves | E48: 16 | F48: Agosto | G48: 2018 | H48: Jueves 16 de Agosto del 2018 | I48: 45259265 | J48: Irving Huaringa Bustos | K48: 120.1 | L48: 120 | M48: 10 | N48: CIENTO VEINTE | O48: 0A941
A49: 10048 | B49: 2018320 | C49: 2018-08-16 | D49: Jueves | E49: 16 | F49: Agosto | G49: 2018 | H49: Jueves 16 de Agosto del 2018 | I49: 146339198 | J49: Pedro Hostos Salazar | K49: 144.3 | L49: 144 | M49: 30 | N49: CIENTO CUARENTA Y CUATRO | O49: 0A941
A50: 10049 | B50: 2018320 | C50: 2018-08-16 | D50: Jueves | E50: 16 | F50: Agosto | G50: 2018 | H50: Jueves 16 de Agosto del 2018 | I50: 06875877 | J50: Miguel Tejada Llauce | K50: 296.1 | L50: 296 | M50: 10 | N50: DOSCIENTOS NOVENTA Y SEIS | O50: 0A941
A51: 10050 | B51: 2018320 | C51: 2018-08-16 | D51: Jueves | E51: 16 | F51: Agosto | G51: 2018 | H51: Jueves 16 de Agosto del 2018 | I51: 139521272 | J51: Jose Cortez Pereira | K51: 307 | L51: 307 | M51: 0 | N51: TRESCIENTOS SIETE | O51: 0A941
A52: 10051 | B52: 2018320 | C52: 2018-08-16 | D52: Jueves | E52: 16 | F52: Agosto | G52: 2018 | H52: Jueves 16 de Agosto del 2018 | I52: 130952792 | J52: Rafael Armas Rivas | K52: 248.8 | L52: 248 | M52: 80 | N52: DOSCIENTOS CUARENTA Y OCHO | O52: 0A941
A53: 10052 | B53: 2018320 | C53: 2018-08-16 | D53: Jueves | E53: 16 | F53: Agosto | G53: 2018 | H53: Jueves 16 de Agosto del 2018 | I53: 118405791 | J53: Jose Ochoa Infante | K53: 314.8 | L53: 314 | M53: 80 | N53: TRESCIENTOS CATORCE | O53: 0A941 | P53: =SUM(K41:K53) -> 2796.1
A54: 10053 | B54: 2018330 | C54: 2018-08-23 | D54: Jueves | E54: 23 | F54: Agosto | G54: 2018 | H54: =CONCATENATE(D54," ",E54," de ",F54," del ",G54) -> Jueves 23 de Agosto del 2018 | I54: 09017700 | J54: Andrés Manrique Fernandez | K54: 500 | L54: =INT(K54) -> 500 | M54: =ROUND((K54-INT(K54))*100,2) -> 0 | N54: =UPPER(NumLet(INT(K54))) -> QUINIENTOS | O54: 0A948
A55: 10054 | B55: 2018330 | C55: 2018-08-23 | D55: Jueves | E55: 23 | F55: Agosto | G55: 2018 | H55: =CONCATENATE(D55," ",E55," de ",F55," del ",G55) -> Jueves 23 de Agosto del 2018 | I55: 25486899 | J55: Silvia Tapia de Linares | K55: 157.4 | L55: 157 | M55: 40 | N55: CIENTO CINCUENTA Y SIETE | O55: 0A948
A56: 10055 | B56: 2018330 | C56: 2018-08-23 | D56: Jueves | E56: 23 | F56: Agosto | G56: 2018 | H56: Jueves 23 de Agosto del 2018 | I56: 06177146 | J56: Patricio Montañez Pajuelo | K56: 219 | L56: 219 | M56: 0 | N56: DOSCIENTOS DIECINUEVE | O56: 0A948
A57: 10056 | B57: 2018330 | C57: 2018-08-23 | D57: Jueves | E57: 23 | F57: Agosto | G57: 2018 | H57: Jueves 23 de Agosto del 2018 | I57: 07747366 | J57: Eduardo Segura Durand | K57: 214.4 | L57: 214 | M57: 40 | N57: DOSCIENTOS CATORCE | O57: 0A948
A58: 10057 | B58: 2018330 | C58: 2018-08-23 | D58: Jueves | E58: 23 | F58: Agosto | G58: 2018 | H58: Jueves 23 de Agosto del 2018 | I58: 40346824 | J58: Cesar Mendez Mallqui | K58: 300.1 | L58: 300 | M58: 10 | N58: TRESCIENTOS | O58: 0A948
A59: 10058 | B59: 2018330 | C59: 2018-08-23 | D59: Jueves | E59: 23 | F59: Agosto | G59: 2018 | H59: Jueves 23 de Agosto del 2018 | I59: 73946962 | J59: Alejandro Dueñas Palacios | K59: 0 | L59: 0 | M59: 0 | O59: 0A948
A60: 10059 | B60: 2018330 | C60: 2018-08-23 | D60: Jueves | E60: 23 | F60: Agosto | G60: 2018 | H60: Jueves 23 de Agosto del 2018 | I60: 80467819 | J60: Juan Marique Vega | K60: 114.5 | L60: 114 | M60: 50 | N60: CIENTO CATORCE | O60: 0A948
A61: 10060 | B61: 2018330 | C61: 2018-08-23 | D61: Jueves | E61: 23 | F61: Agosto | G61: 2018 | H61: Jueves 23 de Agosto del 2018 | I61: 45259265 | J61: Irving Huaringa Bustos | K61: 109.8 | L61: 109 | M61: 80 | N61: CIENTO NUEVE | O61: 0A948
A62: 10061 | B62: 2018330 | C62: 2018-08-23 | D62: Jueves | E62: 23 | F62: Agosto | G62: 2018 | H62: Jueves 23 de Agosto del 2018 | I62: 146339198 | J62: Pedro Hostos Salazar | K62: 78.3 | L62: 78 | M62: 30 | N62: SETENTA Y OCHO | O62: 0A948
A63: 10062 | B63: 2018330 | C63: 2018-08-23 | D63: Jueves | E63: 23 | F63: Agosto | G63: 2018 | H63: Jueves 23 de Agosto del 2018 | I63: 06875877 | J63: Miguel Tejada Llauce | K63: 217.9 | L63: 217 | M63: 90 | N63: DOSCIENTOS DIECISIETE | O63: 0A948
A64: 10063 | B64: 2018330 | C64: 2018-08-23 | D64: Jueves | E64: 23 | F64: Agosto | G64: 2018 | H64: Jueves 23 de Agosto del 2018 | I64: 139521272 | J64: Jose Cortez Pereira | K64: 318.6 | L64: 318 | M64: 60 | N64: TRESCIENTOS DIECIOCHO | O64: 0A948
A65: 10064 | B65: 2018330 | C65: 2018-08-23 | D65: Jueves | E65: 23 | F65: Agosto | G65: 2018 | H65: Jueves 23 de Agosto del 2018 | I65: 130952792 | J65: Rafael Armas Rivas | K65: 314.8 | L65: 314 | M65: 80 | N65: TRESCIENTOS CATORCE | O65: 0A948
A66: 10065 | B66: 2018330 | C66: 2018-08-23 | D66: Jueves | E66: 23 | F66: Agosto | G66: 2018 | H66: Jueves 23 de Agosto del 2018 | I66: 118405791 | J66: Jose Ochoa Infante | K66: 256.5 | L66: 256 | M66: 50 | N66: DOSCIENTOS CINCUENTA Y SEIS | O66: 0A948 | P66: =SUM(K54:K66) -> 2801.3
A67: 10066 | B67: 2018340 | C67: 2018-08-29 | D67: Miércoles | E67: 29 | F67: Agosto | G67: 2018 | H67: Miércoles 29 de Agosto del 2018 | I67: 09017700 | J67: Andrés Manrique Fernandez | K67: 660 | L67: =INT(K67) -> 660 | M67: =ROUND((K67-INT(K67))*100,2) -> 0 | N67: =UPPER(NumLet(INT(K67))) -> SEISCIENTOS SESENTA | O67: 0A948
A68: 10067 | B68: 2018340 | C68: 2018-08-29 | D68: Miércoles | E68: 29 | F68: Agosto | G68: 2018 | H68: =CONCATENATE(D68," ",E68," de ",F68," del ",G68) -> Miércoles 29 de Agosto del 2018 | I68: 25486899 | J68: Silvia Tapia de Linares | K68: 145 | L68: 145 | M68: 0 | N68: CIENTO CUARENTA Y CINCO | O68: 0A948
A69: 10068 | B69: 2018340 | C69: 2018-08-29 | D69: =TEXT($C69,"dddd") -> Miércoles | E69: =TEXT($C69,"dd") -> 29 | F69: =TEXT($C69,"mmmm") -> Agosto | G69: =TEXT($C69,"yyyy") -> 2018 | H69: Miércoles 29 de Agosto del 2018 | I69: 06177146 | J69: Patricio Montañez Pajuelo | K69: 219 | L69: 219 | M69: 0 | N69: DOSCIENTOS DIECINUEVE | O69: 0A948
A70: 10069 | B70: 2018340 | C70: 2018-08-29 | D70: Miércoles | E70: 29 | F70: Agosto | G70: 2018 | H70: Miércoles 29 de Agosto del 2018 | I70: 07747366 | J70: Eduardo Segura Durand | K70: 82.6 | L70: 82 | M70: 60 | N70: OCHENTA Y DOS | O70: 0A948
A71: 10070 | B71: 2018340 | C71: 2018-08-29 | D71: Miércoles | E71: 29 | F71: Agosto | G71: 2018 | H71: Miércoles 29 de Agosto del 2018 | I71: 40346824 | J71: Cesar Mendez Mallqui | K71: 85.6 | L71: 85 | M71: 60 | N71: OCHENTA Y CINCO | O71: 0A948
A72: 10071 | B72: 2018340 | C72: 2018-08-29 | D72: Miércoles | E72: 29 | F72: Agosto | G72: 2018 | H72: Miércoles 29 de Agosto del 2018 | I72: 73946962 | J72: Alejandro Dueñas Palacios | K72: 0 | L72: 0 | M72: 0 | O72: 0A948
A73: 10072 | B73: 2018340 | C73: 2018-08-29 | D73: Miércoles | E73: 29 | F73: Agosto | G73: 2018 | H73: Miércoles 29 de Agosto del 2018 | I73: 80467819 | J73: Juan Marique Vega | K73: 216.1 | L73: 216 | M73: 10 | N73: DOSCIENTOS DIECISEIS | O73: 0A948
A74: 10073 | B74: 2018340 | C74: 2018-08-29 | D74: Miércoles | E74: 29 | F74: Agosto | G74: 2018 | H74: Miércoles 29 de Agosto del 2018 | I74: 45259265 | J74: Irving Huaringa Bustos | K74: 94.4 | L74: 94 | M74: 40 | N74: NOVENTA Y CUATRO | O74: 0A948
A75: 10074 | B75: 2018340 | C75: 2018-08-29 | D75: Miércoles | E75: 29 | F75: Agosto | G75: 2018 | H75: Miércoles 29 de Agosto del 2018 | I75: 146339198 | J75: Pedro Hostos Salazar | K75: 136.4 | L75: 136 | M75: 40 | N75: CIENTO TREINTA Y SEIS | O75: 0A948
A76: 10075 | B76: 2018340 | C76: 2018-08-29 | D76: Miércoles | E76: 29 | F76: Agosto | G76: 2018 | H76: Miércoles 29 de Agosto del 2018 | I76: 06875877 | J76: Miguel Tejada Llauce | K76: 296.1 | L76: 296 | M76: 10 | N76: DOSCIENTOS NOVENTA Y SEIS | O76: 0A948
A77: 10076 | B77: 2018340 | C77: 2018-08-29 | D77: Miércoles | E77: 29 | F77: Agosto | G77: 2018 | H77: Miércoles 29 de Agosto del 2018 | I77: 139521272 | J77: Jose Cortez Pereira | K77: 260.4 | L77: 260 | M77: 40 | N77: DOSCIENTOS SESENTA | O77: 0A948
A78: 10077 | B78: 2018340 | C78: 2018-08-29 | D78: Miércoles | E78: 29 | F78: Agosto | G78: 2018 | H78: Miércoles 29 de Agosto del 2018 | I78: 130952792 | J78: Rafael Armas Rivas | K78: 341.9 | L78: 341 | M78: 90 | N78: TRESCIENTOS CUARENTA Y UNO | O78: 0A948
A79: 10078 | B79: 2018340 | C79: 2018-08-29 | D79: Miércoles | E79: 29 | F79: Agosto | G79: 2018 | H79: Miércoles 29 de Agosto del 2018 | I79: 118405791 | J79: Jose Ochoa Infante | K79: 330.1 | L79: 330 | M79: 10 | N79: TRESCIENTOS TREINTA | O79: 0A948 | P79: =SUM(K67:K79) -> 2867.6
A80: 10079 | B80: 2018350 | C80: 2018-09-06 | D80: Jueves | E80: 06 | F80: Septiembre | G80: 2018 | H80: Jueves 06 de Septiembre del 2018 | I80: 09017700 | J80: Andrés Manrique Fernandez | K80: 500 | L80: =INT(K80) -> 500 | M80: =ROUND((K80-INT(K80))*100,2) -> 0 | N80: =UPPER(NumLet(INT(K80))) -> QUINIENTOS | O80: 0A948
A81: 10080 | B81: 2018350 | C81: 2018-09-06 | D81: Jueves | E81: 06 | F81: Septiembre | G81: 2018 | H81: =CONCATENATE(D81," ",E81," de ",F81," del ",G81) -> Jueves 06 de Septiembre del 2018 | I81: 25486899 | J81: Silvia Tapia de Linares | K81: 116.6 | L81: 116 | M81: 60 | N81: CIENTO DIECISEIS | O81: 0A948
A82: 10081 | B82: 2018350 | C82: 2018-09-06 | D82: Jueves | E82: 06 | F82: Septiembre | G82: 2018 | H82: Jueves 06 de Septiembre del 2018 | I82: 06177146 | J82: Patricio Montañez Pajuelo | K82: 219 | L82: 219 | M82: 0 | N82: DOSCIENTOS DIECINUEVE | O82: 0A948
A83: 10082 | B83: 2018350 | C83: 2018-09-06 | D83: Jueves | E83: 06 | F83: Septiembre | G83: 2018 | H83: Jueves 06 de Septiembre del 2018 | I83: 07747366 | J83: Eduardo Segura Durand | K83: 169.5 | L83: 169 | M83: 50 | N83: CIENTO SESENTA Y NUEVE | O83: 0A948
A84: 10083 | B84: 2018350 | C84: 2018-09-06 | D84: Jueves | E84: 06 | F84: Septiembre | G84: 2018 | H84: Jueves 06 de Septiembre del 2018 | I84: 40346824 | J84: Cesar Mendez Mallqui | K84: 249.9 | L84: 249 | M84: 90 | N84: DOSCIENTOS CUARENTA Y NUEVE | O84: 0A948
A85: 10084 | B85: 2018350 | C85: 2018-09-06 | D85: Jueves | E85: 06 | F85: Septiembre | G85: 2018 | H85: Jueves 06 de Septiembre del 2018 | I85: 73946962 | J85: Alejandro Dueñas Palacios | K85: 103.5 | L85: 103 | M85: 50 | N85: CIENTO TRES | O85: 0A948
A86: 10085 | B86: 2018350 | C86: 2018-09-06 | D86: Jueves | E86: 06 | F86: Septiembre | G86: 2018 | H86: Jueves 06 de Septiembre del 2018 | I86: 80467819 | J86: Juan Marique Vega | K86: 125.9 | L86: 125 | M86: 90 | N86: CIENTO VEINTICINCO | O86: 0A948
A87: 10086 | B87: 2018350 | C87: 2018-09-06 | D87: Jueves | E87: 06 | F87: Septiembre | G87: 2018 | H87: Jueves 06 de Septiembre del 2018 | I87: 45259265 | J87: Irving Huaringa Bustos | K87: 106.9 | L87: 106 | M87: 90 | N87: CIENTO SEIS | O87: 0A948
A88: 10087 | B88: 2018350 | C88: 2018-09-06 | D88: Jueves | E88: 06 | F88: Septiembre | G88: 2018 | H88: Jueves 06 de Septiembre del 2018 | I88: 146339198 | J88: Pedro Hostos Salazar | K88: 128.6 | L88: 128 | M88: 60 | N88: CIENTO VEINTIOCHO | O88: 0A948
A89: 10088 | B89: 2018350 | C89: 2018-09-06 | D89: Jueves | E89: 06 | F89: Septiembre | G89: 2018 | H89: Jueves 06 de Septiembre del 2018 | I89: 06875877 | J89: Miguel Tejada Llauce | K89: 269.9 | L89: 269 | M89: 90 | N89: DOSCIENTOS SESENTA Y NUEVE | O89: 0A948
A90: 10089 | B90: 2018350 | C90: 2018-09-06 | D90: Jueves | E90: 06 | F90: Septiembre | G90: 2018 | H90: Jueves 06 de Septiembre del 2018 | I90: 139521272 | J90: Jose Cortez Pereira | K90: 256.5 | L90: 256 | M90: 50 | N90: DOSCIENTOS CINCUENTA Y SEIS | O90: 0A948
A91: 10090 | B91: 2018350 | C91: 2018-09-06 | D91: Jueves | E91: 06 | F91: Septiembre | G91: 2018 | H91: Jueves 06 de Septiembre del 2018 | I91: 130952792 | J91: Rafael Armas Rivas | K91: 322.5 | L91: 322 | M91: 50 | N91: TRESCIENTOS VEINTIDOS | O91: 0A948
A92: 10091 | B92: 2018350 | C92: 2018-09-06 | D92: Jueves | E92: 06 | F92: Septiembre | G92: 2018 | H92: Jueves 06 de Septiembre del 2018 | I92: 118405791 | J92: Jose Ochoa Infante | K92: 322.5 | L92: 322 | M92: 50 | N92: TRESCIENTOS VEINTIDOS | O92: 0A948 | P92: =SUM(K80:K92) -> 2891.3
A93: 10092 | B93: 2018350 | C93: 2018-09-06 | D93: Jueves | E93: 06 | F93: Septiembre | G93: 2018 | H93: =CONCATENATE(D93," ",E93," de ",F93," del ",G93) -> Jueves 06 de Septiembre del 2018 | I93: 08900212 | J93: DOLORES CIRILO TARAZONA MENA | K93: 1000 | L93: =INT(K93) -> 1000 | M93: =ROUND((K93-INT(K93))*100,2) -> 0 | N93: =UPPER(NumLet(INT(K93))) -> UNO MIL | O93: Reparacion de 02 Cilindros, Piston de Tolva Granelera
A94: 10093 | B94: 2018360 | C94: 2018-09-13 | D94: Jueves | E94: 13 | F94: Septiembre | G94: 2018 | H94: Jueves 13 de Septiembre del 2018 | I94: 09017700 | J94: Andrés Manrique Fernandez | K94: 500 | L94: 500 | M94: 0 | N94: QUINIENTOS | O94: 0A948
A95: 10094 | B95: 2018360 | C95: 2018-09-13 | D95: Jueves | E95: 13 | F95: Septiembre | G95: 2018 | H95: Jueves 13 de Septiembre del 2018 | I95: 25486899 | J95: Silvia Tapia de Linares | K95: 146.1 | L95: 146 | M95: 10 | N95: CIENTO CUARENTA Y SEIS | O95: 0A948
A96: 10095 | B96: 2018360 | C96: 2018-09-13 | D96: Jueves | E96: 13 | F96: Septiembre | G96: 2018 | H96: Jueves 13 de Septiembre del 2018 | I96: 06177146 | J96: Patricio Montañez Pajuelo | K96: 219 | L96: 219 | M96: 0 | N96: DOSCIENTOS DIECINUEVE | O96: 0A948
A97: 10096 | B97: 2018360 | C97: 2018-09-13 | D97: Jueves | E97: 13 | F97: Septiembre | G97: 2018 | H97: Jueves 13 de Septiembre del 2018 | I97: 07747366 | J97: Eduardo Segura Durand | K97: 78.6 | L97: 78 | M97: 60 | N97: SETENTA Y OCHO | O97: 0A948
A98: 10097 | B98: 2018360 | C98: 2018-09-13 | D98: Jueves | E98: 13 | F98: Septiembre | G98: 2018 | H98: Jueves 13 de Septiembre del 2018 | I98: 40346824 | J98: Cesar Mendez Mallqui | K98: 243.6 | L98: 243 | M98: 60 | N98: DOSCIENTOS CUARENTA Y TRES | O98: 0A948
A99: 10098 | B99: 2018360 | C99: 2018-09-13 | D99: Jueves | E99: 13 | F99: Septiembre | G99: 2018 | H99: Jueves 13 de Septiembre del 2018 | I99: 73946962 | J99: Alejandro Dueñas Palacios | K99: 53.2 | L99: 53 | M99: 20 | N99: CINCUENTA Y TRES | O99: 0A948
A100: 10099 | B100: 2018360 | C100: 2018-09-13 | D100: Jueves | E100: 13 | F100: Septiembre | G100: 2018 | H100: Jueves 13 de Septiembre del 2018 | I100: 80467819 | J100: Juan Marique Vega | K100: 181.3 | L100: 181 | M100: 30 | N100: CIENTO OCHENTA Y UNO | O100: 0A948
A101: 10100 | B101: 2018360 | C101: 2018-09-13 | D101: Jueves | E101: 13 | F101: Septiembre | G101: 2018 | H101: Jueves 13 de Septiembre del 2018 | I101: 45259265 | J101: Irving Huaringa Bustos | K101: 94.4 | L101: 94 | M101: 40 | N101: NOVENTA Y CUATRO | O101: 0A948
A102: 10101 | B102: 2018360 | C102: 2018-09-13 | D102: Jueves | E102: 13 | F102: Septiembre | G102: 2018 | H102: Jueves 13 de Septiembre del 2018 | I102: 146339198 | J102: Pedro Hostos Salazar | K102: 140.4 | L102: 140 | M102: 40 | N102: CIENTO CUARENTA | O102: 0A948
A103: 10102 | B103: 2018360 | C103: 2018-09-13 | D103: Jueves | E103: 13 | F103: Septiembre | G103: 2018 | H103: Jueves 13 de Septiembre del 2018 | I103: 06875877 | J103: Miguel Tejada Llauce | K103: 202.5 | L103: 202 | M103: 50 | N103: DOSCIENTOS DOS | O103: 0A948
A104: 10103 | B104: 2018360 | C104: 2018-09-13 | D104: Jueves | E104: 13 | F104: Septiembre | G104: 2018 | H104: Jueves 13 de Septiembre del 2018 | I104: 139521272 | J104: Jose Cortez Pereira | K104: 369 | L104: 369 | M104: 0 | N104: TRESCIENTOS SESENTA Y NUEVE | O104: 0A948
A105: 10104 | B105: 2018360 | C105: 2018-09-13 | D105: Jueves | E105: 13 | F105: Septiembre | G105: 2018 | H105: Jueves 13 de Septiembre del 2018 | I105: 130952792 | J105: Rafael Armas Rivas | K105: 322.5 | L105: 322 | M105: 50 | N105: TRESCIENTOS VEINTIDOS | O105: 0A948
A106: 10105 | B106: 2018360 | C106: 2018-09-13 | D106: Jueves | E106: 13 | F106: Septiembre | G106: 2018 | H106: Jueves 13 de Septiembre del 2018 | I106: 118405791 | J106: Jose Ochoa Infante | K106: 256.5 | L106: 256 | M106: 50 | N106: DOSCIENTOS CINCUENTA Y SEIS | O106: 0A948 | P106: =SUM(K94:K106) -> 2807.1
A107: 10106 | B107: 2018370 | C107: 2018-09-20 | D107: Jueves | E107: 20 | F107: Septiembre | G107: 2018 | H107: =CONCATENATE(D107," ",E107," de ",F107," del ",G107) -> Jueves 20 de Septiembre del 2018 | I107: 09017700 | J107: Andrés Manrique Fernandez | K107: 430 | L107: =INT(K107) -> 430 | M107: =ROUND((K107-INT(K107))*100,2) -> 0 | N107: =UPPER(NumLet(INT(K107))) -> CUATROCIENTOS TREINTA | O107: 0A964
A108: 10107 | B108: 2018370 | C108: 2018-09-20 | D108: Jueves | E108: 20 | F108: Septiembre | G108: 2018 | H108: Jueves 20 de Septiembre del 2018 | I108: 25486899 | J108: Silvia Tapia de Linares | K108: 125.7 | L108: 125 | M108: 70 | N108: CIENTO VEINTICINCO | O108: 0A964
A109: 10108 | B109: 2018370 | C109: 2018-09-20 | D109: Jueves | E109: 20 | F109: Septiembre | G109: 2018 | H109: Jueves 20 de Septiembre del 2018 | I109: 06177146 | J109: Patricio Montañez Pajuelo | K109: 219 | L109: 219 | M109: 0 | N109: DOSCIENTOS DIECINUEVE | O109: 0A964
A110: 10109 | B110: 2018370 | C110: 2018-09-20 | D110: Jueves | E110: 20 | F110: Septiembre | G110: 2018 | H110: Jueves 20 de Septiembre del 2018 | I110: 07747366 | J110: Eduardo Segura Durand | K110: 15.5 | L110: 15 | M110: 50 | N110: QUINCE | O110: 0A964
A111: 10110 | B111: 2018370 | C111: 2018-09-20 | D111: Jueves | E111: 20 | F111: Septiembre | G111: 2018 | H111: Jueves 20 de Septiembre del 2018 | I111: 40346824 | J111: Cesar Mendez Mallqui | K111: 80.5 | L111: 80 | M111: 50 | N111: OCHENTA | O111: 0A964
A112: 10111 | B112: 2018370 | C112: 2018-09-20 | D112: Jueves | E112: 20 | F112: Septiembre | G112: 2018 | H112: Jueves 20 de Septiembre del 2018 | I112: 73946962 | J112: Alejandro Dueñas Palacios | K112: 136.5 | L112: 136 | M112: 50 | N112: CIENTO TREINTA Y SEIS | O112: 0A964
A113: 10112 | B113: 2018370 | C113: 2018-09-20 | D113: Jueves | E113: 20 | F113: Septiembre | G113: 2018 | H113: Jueves 20 de Septiembre del 2018 | I113: 80467819 | J113: Juan Marique Vega | K113: 109.4 | L113: 109 | M113: 40 | N113: CIENTO NUEVE | O113: 0A964
A114: 10113 | B114: 2018370 | C114: 2018-09-20 | D114: Jueves | E114: 20 | F114: Septiembre | G114: 2018 | H114: Jueves 20 de Septiembre del 2018 | I114: 45259265 | J114: Irving Huaringa Bustos | K114: 109.8 | L114: 109 | M114: 80 | N114: CIENTO NUEVE | O114: 0A964
A115: 10114 | B115: 2018370 | C115: 2018-09-20 | D115: Jueves | E115: 20 | F115: Septiembre | G115: 2018 | H115: Jueves 20 de Septiembre del 2018 | I115: 146339198 | J115: Pedro Hostos Salazar | K115: 54.9 | L115: 54 | M115: 90 | N115: CINCUENTA Y CUATRO | O115: 0A964
A116: 10115 | B116: 2018370 | C116: 2018-09-20 | D116: Jueves | E116: 20 | F116: Septiembre | G116: 2018 | H116: Jueves 20 de Septiembre del 2018 | I116: 06875877 | J116: Miguel Tejada Llauce | K116: 380.3 | L116: 380 | M116: 30 | N116: TRESCIENTOS OCHENTA | O116: 0A964
A117: 10116 | B117: 2018370 | C117: 2018-09-20 | D117: Jueves | E117: 20 | F117: Septiembre | G117: 2018 | H117: Jueves 20 de Septiembre del 2018 | I117: 139521272 | J117: Jose Cortez Pereira | K117: 117 | L117: 117 | M117: 0 | N117: CIENTO DIECISIETE | O117: 0A964
A118: 10117 | B118: 2018370 | C118: 2018-09-20 | D118: Jueves | E118: 20 | F118: Septiembre | G118: 2018 | H118: =CONCATENATE(D118," ",E118," de ",F118," del ",G118) -> Jueves 20 de Septiembre del 2018 | I118: 130952792 | J118: Rafael Armas Rivas | K118: 70.5 | L118: =INT(K118) -> 70 | M118: =ROUND((K118-INT(K118))*100,2) -> 50 | N118: =UPPER(NumLet(INT(K118))) -> SETENTA | O118: 0A964
A119: 10118 | B119: 2018370 | C119: 2018-09-20 | D119: Jueves | E119: 20 | F119: Septiembre | G119: 2018 | H119: Jueves 20 de Septiembre del 2018 | I119: 118405791 | J119: Jose Ochoa Infante | K119: 140.4 | L119: 140 | M119: 40 | N119: CIENTO CUARENTA | O119: 0A964
A120: 10119 | B120: 2018370 | C120: 2018-09-20 | D120: Jueves | E120: 20 | F120: Septiembre | G120: 2018 | H120: Jueves 20 de Septiembre del 2018 | I120: 118405791 | J120: Eduardo Marmoles Urrea | K120: 27.1 | L120: 27 | M120: 10 | N120: VEINTISIETE | O120: 0A964 | P120: =SUM(K107:K120) -> 2016.6
A121: 10120 | B121: 2018380 | C121: 2018-09-27 | D121: Jueves | E121: 27 | F121: Septiembre | G121: 2018 | H121: =CONCATENATE(D121," ",E121," de ",F121," del ",G121) -> Jueves 27 de Septiembre del 2018 | I121: 09017700 | J121: Andrés Manrique Fernandez | K121: 500 | L121: =INT(K121) -> 500 | M121: =ROUND((K121-INT(K121))*100,2) -> 0 | N121: =UPPER(NumLet(INT(K121))) -> QUINIENTOS | O121: 0A96B
A122: 10121 | B122: 2018380 | C122: 2018-09-27 | D122: Jueves | E122: 27 | F122: Septiembre | G122: 2018 | H122: Jueves 27 de Septiembre del 2018 | I122: 25486899 | J122: Silvia Tapia de Linares | K122: 150.2 | L122: 150 | M122: 20 | N122: CIENTO CINCUENTA | O122: 0A96B
A123: 10122 | B123: 2018380 | C123: 2018-09-27 | D123: Jueves | E123: 27 | F123: Septiembre | G123: 2018 | H123: Jueves 27 de Septiembre del 2018 | I123: 06177146 | J123: Patricio Montañez Pajuelo | K123: 219 | L123: 219 | M123: 0 | N123: DOSCIENTOS DIECINUEVE | O123: 0A96B
A124: 10123 | B124: 2018380 | C124: 2018-09-27 | D124: Jueves | E124: 27 | F124: Septiembre | G124: 2018 | H124: Jueves 27 de Septiembre del 2018 | I124: 07747366 | J124: Eduardo Segura Durand | K124: 78 | L124: 78 | M124: 0 | N124: SETENTA Y OCHO | O124: 0A96B
A125: 10124 | B125: 2018380 | C125: 2018-09-27 | D125: Jueves | E125: 27 | F125: Septiembre | G125: 2018 | H125: Jueves 27 de Septiembre del 2018 | I125: 40346824 | J125: Cesar Mendez Mallqui | K125: 295 | L125: 295 | M125: 0 | N125: DOSCIENTOS NOVENTA Y CINCO | O125: 0A96B
A126: 10125 | B126: 2018380 | C126: 2018-09-27 | D126: Jueves | E126: 27 | F126: Septiembre | G126: 2018 | H126: Jueves 27 de Septiembre del 2018 | I126: 73946962 | J126: Alejandro Dueñas Palacios | K126: 219.8 | L126: 219 | M126: 80 | N126: DOSCIENTOS DIECINUEVE | O126: 0A96B
A127: 10126 | B127: 2018380 | C127: 2018-09-27 | D127: Jueves | E127: 27 | F127: Septiembre | G127: 2018 | H127: Jueves 27 de Septiembre del 2018 | I127: 80467819 | J127: Juan Marique Vega | K127: 105.4 | L127: 105 | M127: 40 | N127: CIENTO CINCO | O127: 0A96B
A128: 10127 | B128: 2018380 | C128: 2018-09-27 | D128: Jueves | E128: 27 | F128: Septiembre | G128: 2018 | H128: Jueves 27 de Septiembre del 2018 | I128: 45259265 | J128: Irving Huaringa Bustos | K128: 104.7 | L128: 104 | M128: 70 | N128: CIENTO CUATRO | O128: 0A96B
A129: 10128 | B129: 2018380 | C129: 2018-09-27 | D129: Jueves | E129: 27 | F129: Septiembre | G129: 2018 | H129: Jueves 27 de Septiembre del 2018 | I129: 146339198 | J129: Pedro Hostos Salazar | K129: 86 | L129: 86 | M129: 0 | N129: OCHENTA Y SEIS | O129: 0A96B
A130: 10129 | B130: 2018380 | C130: 2018-09-27 | D130: Jueves | E130: 27 | F130: Septiembre | G130: 2018 | H130: Jueves 27 de Septiembre del 2018 | I130: 06875877 | J130: Miguel Tejada Llauce | K130: 399 | L130: 399 | M130: 0 | N130: TRESCIENTOS NOVENTA Y NUEVE | O130: 0A96B
A131: 10130 | B131: 2018380 | C131: 2018-09-27 | D131: Jueves | E131: 27 | F131: Septiembre | G131: 2018 | H131: Jueves 27 de Septiembre del 2018 | I131: 139521272 | J131: Jose Cortez Pereira | K131: 248.8 | L131: 248 | M131: 80 | N131: DOSCIENTOS CUARENTA Y OCHO | O131: 0A96B
A132: 10131 | B132: 2018380 | C132: 2018-09-27 | D132: Jueves | E132: 27 | F132: Septiembre | G132: 2018 | H132: Jueves 27 de Septiembre del 2018 | I132: 130952792 | J132: Rafael Armas Rivas | K132: 279.8 | L132: 279 | M132: 80 | N132: DOSCIENTOS SETENTA Y NUEVE | O132: 0A96B
A133: 10132 | B133: 2018380 | C133: 2018-09-27 | D133: =TEXT($C133,"dddd") -> Jueves | E133: =TEXT($C133,"dd") -> 27 | F133: =TEXT($C133,"mmmm") -> Septiembre | G133: =TEXT($C133,"yyyy") -> 2018 | H133: Jueves 27 de Septiembre del 2018 | I133: 118405791 | J133: Jose Ochoa Infante | K133: 338 | L133: 338 | M133: 0 | N133: TRESCIENTOS TREINTA Y OCHO | O133: 0A96B
A134: 10133 | B134: 2018380 | C134: 2018-09-27 | D134: Jueves | E134: 27 | F134: Septiembre | G134: 2018 | H134: Jueves 27 de Septiembre del 2018 | I134: 118405791 | J134: Eduardo Marmoles Urrea | K134: 31 | L134: 31 | M134: 0 | N134: TREINTA Y UNO | O134: 0A96B | P134: =SUM(K121:K134) -> 3054.7
A135: 10134 | B135: 2018390 | C135: 2018-10-04 | D135: Jueves | E135: 04 | F135: Octubre | G135: 2018 | H135: =CONCATENATE(D135," ",E135," de ",F135," del ",G135) -> Jueves 04 de Octubre del 2018 | I135: 09017700 | J135: Andrés Manrique Fernandez | K135: 500 | L135: =INT(K135) -> 500 | M135: =ROUND((K135-INT(K135))*100,2) -> 0 | N135: =UPPER(NumLet(INT(K135))) -> QUINIENTOS | O135: 0A972
A136: 10135 | B136: 2018390 | C136: 2018-10-04 | D136: Jueves | E136: 04 | F136: Octubre | G136: 2018 | H136: Jueves 04 de Octubre del 2018 | I136: 25486899 | J136: Silvia Tapia de Linares | K136: 97.1 | L136: 97 | M136: 10 | N136: NOVENTA Y SIETE | O136: 0A972
A137: 10136 | B137: 2018390 | C137: 2018-10-04 | D137: Jueves | E137: 04 | F137: Octubre | G137: 2018 | H137: Jueves 04 de Octubre del 2018 | I137: 06177146 | J137: Patricio Montañez Pajuelo | K137: 219 | L137: 219 | M137: 0 | N137: DOSCIENTOS DIECINUEVE | O137: 0A972
A138: 10137 | B138: 2018390 | C138: 2018-10-04 | D138: Jueves | E138: 04 | F138: Octubre | G138: 2018 | H138: Jueves 04 de Octubre del 2018 | I138: 07747366 | J138: Eduardo Segura Durand | K138: 10.4 | L138: 10 | M138: 40 | N138: DIEZ | O138: 0A972
A139: 10138 | B139: 2018390 | C139: 2018-10-04 | D139: Jueves | E139: 04 | F139: Octubre | G139: 2018 | H139: Jueves 04 de Octubre del 2018 | I139: 40346824 | J139: Cesar Mendez Mallqui | K139: 346.3 | L139: 346 | M139: 30 | N139: TRESCIENTOS CUARENTA Y SEIS | O139: 0A972
A140: 10139 | B140: 2018390 | C140: 2018-10-04 | D140: Jueves | E140: 04 | F140: Octubre | G140: 2018 | H140: Jueves 04 de Octubre del 2018 | I140: 73946962 | J140: Alejandro Dueñas Palacios | K140: 207.2 | L140: 207 | M140: 20 | N140: DOSCIENTOS SIETE | O140: 0A972
A141: 10140 | B141: 2018390 | C141: 2018-10-04 | D141: Jueves | E141: 04 | F141: Octubre | G141: 2018 | H141: Jueves 04 de Octubre del 2018 | I141: 80467819 | J141: Juan Marique Vega | K141: 119.7 | L141: 119 | M141: 70 | N141: CIENTO DIECINUEVE | O141: 0A972
A142: 10141 | B142: 2018390 | C142: 2018-10-04 | D142: Jueves | E142: 04 | F142: Octubre | G142: 2018 | H142: Jueves 04 de Octubre del 2018 | I142: 45259265 | J142: Irving Huaringa Bustos | K142: 94.4 | L142: 94 | M142: 40 | N142: NOVENTA Y CUATRO | O142: 0A972
A143: 10142 | B143: 2018390 | C143: 2018-10-04 | D143: Jueves | E143: 04 | F143: Octubre | G143: 2018 | H143: Jueves 04 de Octubre del 2018 | I143: 146339198 | J143: Pedro Hostos Salazar | K143: 47.3 | L143: 47 | M143: 30 | N143: CUARENTA Y SIETE | O143: 0A972
A144: 10143 | B144: 2018390 | C144: 2018-10-04 | D144: Jueves | E144: 04 | F144: Octubre | G144: 2018 | H144: Jueves 04 de Octubre del 2018 | I144: 06875877 | J144: Miguel Tejada Llauce | K144: 457.2 | L144: 457 | M144: 20 | N144: CUATROCIENTOS CINCUENTA Y SIETE | O144: 0A972
A145: 10144 | B145: 2018390 | C145: 2018-10-04 | D145: Jueves | E145: 04 | F145: Octubre | G145: 2018 | H145: Jueves 04 de Octubre del 2018 | I145: 139521272 | J145: Jose Cortez Pereira | K145: 338 | L145: 338 | M145: 0 | N145: TRESCIENTOS TREINTA Y OCHO | O145: 0A972
A146: 10145 | B146: 2018390 | C146: 2018-10-04 | D146: Jueves | E146: 04 | F146: Octubre | G146: 2018 | H146: Jueves 04 de Octubre del 2018 | I146: 130952792 | J146: Rafael Armas Rivas | K146: 322.5 | L146: 322 | M146: 50 | N146: TRESCIENTOS VEINTIDOS | O146: 0A972
A147: 10146 | B147: 2018390 | C147: 2018-10-04 | D147: Jueves | E147: 04 | F147: Octubre | G147: 2018 | H147: Jueves 04 de Octubre del 2018 | I147: 118405791 | J147: Jose Ochoa Infante | K147: 264.3 | L147: 264 | M147: 30 | N147: DOSCIENTOS SESENTA Y CUATRO | O147: 0A972
A148: 10147 | B148: 2018390 | C148: 2018-10-04 | D148: Jueves | E148: 04 | F148: Octubre | G148: 2018 | H148: Jueves 04 de Octubre del 2018 | I148: 118405791 | J148: Eduardo Marmoles Urrea | K148: 31 | L148: 31 | M148: 0 | N148: TREINTA Y UNO | O148: 0A972 | P148: =SUM(K135:K148) -> 3054.4
A149: 10148 | B149: 2018400 | C149: 2018-10-11 | D149: Jueves | E149: 11 | F149: Octubre | G149: 2018 | H149: =CONCATENATE(D149," ",E149," de ",F149," del ",G149) -> Jueves 11 de Octubre del 2018 | I149: 09017700 | J149: Andrés Manrique Fernandez | K149: 500 | L149: =INT(K149) -> 500 | M149: =ROUND((K149-INT(K149))*100,2) -> 0 | N149: =UPPER(NumLet(INT(K149))) -> QUINIENTOS | O149: 0A979
A150: 10149 | B150: 2018400 | C150: 2018-10-11 | D150: Jueves | E150: 11 | F150: Octubre | G150: 2018 | H150: Jueves 11 de Octubre del 2018 | I150: 25486899 | J150: Silvia Tapia de Linares | K150: 111.5 | L150: 111 | M150: 50 | N150: CIENTO ONCE | O150: 0A979
A151: 10150 | B151: 2018400 | C151: 2018-10-11 | D151: Jueves | E151: 11 | F151: Octubre | G151: 2018 | H151: Jueves 11 de Octubre del 2018 | I151: 06177146 | J151: Patricio Montañez Pajuelo | K151: 219 | L151: 219 | M151: 0 | N151: DOSCIENTOS DIECINUEVE | O151: 0A979
A152: 10151 | B152: 2018400 | C152: 2018-10-11 | D152: Jueves | E152: 11 | F152: Octubre | G152: 2018 | H152: Jueves 11 de Octubre del 2018 | I152: 07747366 | J152: Eduardo Segura Durand | K152: 83.1 | L152: 83 | M152: 10 | N152: OCHENTA Y TRES | O152: 0A979
A153: 10152 | B153: 2018400 | C153: 2018-10-11 | D153: Jueves | E153: 11 | F153: Octubre | G153: 2018 | H153: Jueves 11 de Octubre del 2018 | I153: 40346824 | J153: Cesar Mendez Mallqui | K153: 162.6 | L153: 162 | M153: 60 | N153: CIENTO SESENTA Y DOS | O153: 0A979
A154: 10153 | B154: 2018400 | C154: 2018-10-11 | D154: Jueves | E154: 11 | F154: Octubre | G154: 2018 | H154: Jueves 11 de Octubre del 2018 | I154: 73946962 | J154: Alejandro Dueñas Palacios | K154: 69.8 | L154: 69 | M154: 80 | N154: SESENTA Y NUEVE | O154: 0A979
A155: 10154 | B155: 2018400 | C155: 2018-10-11 | D155: Jueves | E155: 11 | F155: Octubre | G155: 2018 | H155: Jueves 11 de Octubre del 2018 | I155: 80467819 | J155: Juan Marique Vega | K155: 212.1 | L155: 212 | M155: 10 | N155: DOSCIENTOS DOCE | O155: 0A979
A156: 10155 | B156: 2018400 | C156: 2018-10-11 | D156: Jueves | E156: 11 | F156: Octubre | G156: 2018 | H156: Jueves 11 de Octubre del 2018 | I156: 45259265 | J156: Irving Huaringa Bustos | K156: 86.4 | L156: 86 | M156: 40 | N156: OCHENTA Y SEIS | O156: 0A979
A157: 10156 | B157: 2018400 | C157: 2018-10-11 | D157: Jueves | E157: 11 | F157: Octubre | G157: 2018 | H157: Jueves 11 de Octubre del 2018 | I157: 146339198 | J157: Pedro Hostos Salazar | K157: 175.3 | L157: 175 | M157: 30 | N157: CIENTO SETENTA Y CINCO | O157: 0A979
A158: 10157 | B158: 2018400 | C158: 2018-10-11 | D158: Jueves | E158: 11 | F158: Octubre | G158: 2018 | H158: Jueves 11 de Octubre del 2018 | I158: 06875877 | J158: Miguel Tejada Llauce | K158: 313 | L158: 313 | M158: 0 | N158: TRESCIENTOS TRECE | O158: 0A979
A159: 10158 | B159: 2018400 | C159: 2018-10-11 | D159: Jueves | E159: 11 | F159: Octubre | G159: 2018 | H159: Jueves 11 de Octubre del 2018 | I159: 139521272 | J159: Jose Cortez Pereira | K159: 268.1 | L159: 268 | M159: 10 | N159: DOSCIENTOS SESENTA Y OCHO | O159: 0A979
A160: 10159 | B160: 2018400 | C160: 2018-10-11 | D160: Jueves | E160: 11 | F160: Octubre | G160: 2018 | H160: Jueves 11 de Octubre del 2018 | I160: 130952792 | J160: Rafael Armas Rivas | K160: 229.3 | L160: 229 | M160: 30 | N160: DOSCIENTOS VEINTINUEVE | O160: 0A979
A161: 10160 | B161: 2018400 | C161: 2018-10-11 | D161: Jueves | E161: 11 | F161: Octubre | G161: 2018 | H161: Jueves 11 de Octubre del 2018 | I161: 118405791 | J161: Jose Ochoa Infante | K161: 272 | L161: 272 | M161: 0 | N161: DOSCIENTOS SETENTA Y DOS | O161: 0A979
A162: 10161 | B162: 2018400 | C162: 2018-10-11 | D162: Jueves | E162: 11 | F162: Octubre | G162: 2018 | H162: Jueves 11 de Octubre del 2018 | I162: 118405791 | J162: Eduardo Marmoles Urrea | K162: 42.6 | L162: 42 | M162: 60 | N162: CUARENTA Y DOS | O162: 0A979 | P162: =SUM(K149:K162) -> 2744.8
A163: 10162 | B163: 2018410 | C163: 2018-10-18 | D163: Jueves | E163: 18 | F163: Octubre | G163: 2018 | H163: =CONCATENATE(D163," ",E163," de ",F163," del ",G163) -> Jueves 18 de Octubre del 2018 | I163: 09017700 | J163: Andrés Manrique Fernandez | K163: 500 | L163: =INT(K163) -> 500 | M163: =ROUND((K163-INT(K163))*100,2) -> 0 | N163: =UPPER(NumLet(INT(K163))) -> QUINIENTOS | O163: 0A980
A164: 10163 | B164: 2018410 | C164: 2018-10-18 | D164: Jueves | E164: 18 | F164: Octubre | G164: 2018 | H164: Jueves 18 de Octubre del 2018 | I164: 25486899 | J164: Silvia Tapia de Linares | K164: 165 | L164: 165 | M164: 0 | N164: =UPPER(NumLet(INT(K164))) -> CIENTO SESENTA Y CINCO | O164: 0A980
A165: 10164 | B165: 2018410 | C165: 2018-10-18 | D165: Jueves | E165: 18 | F165: Octubre | G165: 2018 | H165: Jueves 18 de Octubre del 2018 | I165: 06177146 | J165: Patricio Montañez Pajuelo | K165: 219 | L165: 219 | M165: 0 | N165: DOSCIENTOS DIECINUEVE | O165: 0A980
A166: 10165 | B166: 2018410 | C166: 2018-10-18 | D166: Jueves | E166: 18 | F166: Octubre | G166: 2018 | H166: Jueves 18 de Octubre del 2018 | I166: 07747366 | J166: Eduardo Segura Durand | K166: 78.6 | L166: 78 | M166: 60 | N166: SETENTA Y OCHO | O166: 0A980
A167: 10166 | B167: 2018410 | C167: 2018-10-18 | D167: Jueves | E167: 18 | F167: Octubre | G167: 2018 | H167: Jueves 18 de Octubre del 2018 | I167: 40346824 | J167: Cesar Mendez Mallqui | K167: 202.6 | L167: 202 | M167: 60 | N167: DOSCIENTOS DOS | O167: 0A980
A168: 10167 | B168: 2018410 | C168: 2018-10-18 | D168: Jueves | E168: 18 | F168: Octubre | G168: 2018 | H168: Jueves 18 de Octubre del 2018 | I168: 73946962 | J168: Alejandro Dueñas Palacios | K168: 32.5 | L168: 32 | M168: 50 | N168: TREINTA Y DOS | O168: 0A980
A169: 10168 | B169: 2018410 | C169: 2018-10-18 | D169: Jueves | E169: 18 | F169: Octubre | G169: 2018 | H169: Jueves 18 de Octubre del 2018 | I169: 80467819 | J169: Juan Marique Vega | K169: 205.8 | L169: 205 | M169: 80 | N169: DOSCIENTOS CINCO | O169: 0A980
A170: 10169 | B170: 2018410 | C170: 2018-10-18 | D170: Jueves | E170: 18 | F170: Octubre | G170: 2018 | H170: Jueves 18 de Octubre del 2018 | I170: 45259265 | J170: Irving Huaringa Bustos | K170: 109.8 | L170: 109 | M170: 80 | N170: CIENTO NUEVE | O170: 0A980
A171: 10170 | B171: 2018410 | C171: 2018-10-18 | D171: Jueves | E171: 18 | F171: Octubre | G171: 2018 | H171: Jueves 18 de Octubre del 2018 | I171: 146339198 | J171: Pedro Hostos Salazar | K171: 55 | L171: 55 | M171: 0 | N171: CINCUENTA Y CINCO | O171: 0A980
A172: 10171 | B172: 2018410 | C172: 2018-10-18 | D172: Jueves | E172: 18 | F172: Octubre | G172: 2018 | H172: Jueves 18 de Octubre del 2018 | I172: 06875877 | J172: Miguel Tejada Llauce | K172: 397.1 | L172: 397 | M172: 10 | N172: TRESCIENTOS NOVENTA Y SIETE | O172: 0A980
A173: 10172 | B173: 2018410 | C173: 2018-10-18 | D173: Jueves | E173: 18 | F173: Octubre | G173: 2018 | H173: Jueves 18 de Octubre del 2018 | I173: 139521272 | J173: Jose Cortez Pereira | K173: 345.8 | L173: 345 | M173: 80 | N173: TRESCIENTOS CUARENTA Y CINCO | O173: 0A980
A174: 10173 | B174: 2018410 | C174: 2018-10-18 | D174: Jueves | E174: 18 | F174: Octubre | G174: 2018 | H174: Jueves 18 de Octubre del 2018 | I174: 130952792 | J174: Rafael Armas Rivas | K174: 314.8 | L174: 314 | M174: 80 | N174: TRESCIENTOS CATORCE | O174: 0A980
A175: 10174 | B175: 2018410 | C175: 2018-10-18 | D175: Jueves | E175: 18 | F175: Octubre | G175: 2018 | H175: Jueves 18 de Octubre del 2018 | I175: 118405791 | J175: Jose Ochoa Infante | K175: 244.9 | L175: 244 | M175: 90 | N175: DOSCIENTOS CUARENTA Y CUATRO | O175: 0A980
A176: 10175 | B176: 2018410 | C176: 2018-10-18 | D176: Jueves | E176: 18 | F176: Octubre | G176: 2018 | H176: Jueves 18 de Octubre del 2018 | I176: 118405791 | J176: Eduardo Marmoles Urrea | K176: 31 | L176: 31 | M176: 0 | N176: TREINTA Y UNO | O176: 0A980 | P176: =SUM(K163:K176) -> 2901.9
A177: 10176 | B177: 2018420 | C177: 2018-10-25 | D177: Jueves | E177: 25 | F177: Octubre | G177: 2018 | H177: =CONCATENATE(D177," ",E177," de ",F177," del ",G177) -> Jueves 25 de Octubre del 2018 | I177: 09017700 | J177: Andrés Manrique Fernandez | K177: 500 | L177: =INT(K177) -> 500 | M177: =ROUND((K177-INT(K177))*100,2) -> 0 | N177: =UPPER(NumLet(INT(K177))) -> QUINIENTOS | O177: 0A987
A178: 10177 | B178: 2018420 | C178: 2018-10-25 | D178: Jueves | E178: 25 | F178: Octubre | G178: 2018 | H178: Jueves 25 de Octubre del 2018 | I178: 25486899 | J178: Silvia Tapia de Linares | K178: 167.9 | L178: 167 | M178: 90 | N178: =UPPER(NumLet(INT(K178))) -> CIENTO SESENTA Y SIETE | O178: 0A987
A179: 10178 | B179: 2018420 | C179: 2018-10-25 | D179: Jueves | E179: 25 | F179: Octubre | G179: 2018 | H179: Jueves 25 de Octubre del 2018 | I179: 06177146 | J179: Patricio Montañez Pajuelo | K179: 219 | L179: 219 | M179: 0 | N179: DOSCIENTOS DIECINUEVE | O179: 0A987
A180: 10179 | B180: 2018420 | C180: 2018-10-25 | D180: Jueves | E180: 25 | F180: Octubre | G180: 2018 | H180: Jueves 25 de Octubre del 2018 | I180: 07747366 | J180: Eduardo Segura Durand | K180: 82.6 | L180: 82 | M180: 60 | N180: OCHENTA Y DOS | O180: 0A987
A181: 10180 | B181: 2018420 | C181: 2018-10-25 | D181: Jueves | E181: 25 | F181: Octubre | G181: 2018 | H181: Jueves 25 de Octubre del 2018 | I181: 40346824 | J181: Cesar Mendez Mallqui | K181: 54.8 | L181: 54 | M181: 80 | N181: CINCUENTA Y CUATRO | O181: 0A987
A182: 10181 | B182: 2018420 | C182: 2018-10-25 | D182: Jueves | E182: 25 | F182: Octubre | G182: 2018 | H182: Jueves 25 de Octubre del 2018 | I182: 73946962 | J182: Alejandro Dueñas Palacios | K182: 40.7 | L182: 40 | M182: 70 | N182: CUARENTA | O182: 0A987
A183: 10182 | B183: 2018420 | C183: 2018-10-25 | D183: Jueves | E183: 25 | F183: Octubre | G183: 2018 | H183: Jueves 25 de Octubre del 2018 | I183: 80467819 | J183: Juan Marique Vega | K183: 124.8 | L183: 124 | M183: 80 | N183: CIENTO VEINTICUATRO | O183: 0A987
A184: 10183 | B184: 2018420 | C184: 2018-10-25 | D184: Jueves | E184: 25 | F184: Octubre | G184: 2018 | H184: Jueves 25 de Octubre del 2018 | I184: 45259265 | J184: Irving Huaringa Bustos | K184: 125.2 | L184: 125 | M184: 20 | N184: CIENTO VEINTICINCO | O184: 0A987
A185: 10184 | B185: 2018420 | C185: 2018-10-25 | D185: Jueves | E185: 25 | F185: Octubre | G185: 2018 | H185: Jueves 25 de Octubre del 2018 | I185: 146339198 | J185: Pedro Hostos Salazar | K185: 124.9 | L185: 124 | M185: 90 | N185: CIENTO VEINTICUATRO | O185: 0A987
A186: 10185 | B186: 2018420 | C186: 2018-10-25 | D186: Jueves | E186: 25 | F186: Octubre | G186: 2018 | H186: Jueves 25 de Octubre del 2018 | I186: 06875877 | J186: Miguel Tejada Llauce | K186: 328.3 | L186: 328 | M186: 30 | N186: TRESCIENTOS VEINTIOCHO | O186: 0A987
A187: 10186 | B187: 2018420 | C187: 2018-10-25 | D187: Jueves | E187: 25 | F187: Octubre | G187: 2018 | H187: Jueves 25 de Octubre del 2018 | I187: 139521272 | J187: Jose Cortez Pereira | K187: 307 | L187: 307 | M187: 0 | N187: TRESCIENTOS SIETE | O187: 0A987
A188: 10187 | B188: 2018420 | C188: 2018-10-25 | D188: Jueves | E188: 25 | F188: Octubre | G188: 2018 | H188: Jueves 25 de Octubre del 2018 | I188: 130952792 | J188: Rafael Armas Rivas | K188: 244.9 | L188: 244 | M188: 90 | N188: DOSCIENTOS CUARENTA Y CUATRO | O188: 0A987
A189: 10188 | B189: 2018420 | C189: 2018-10-25 | D189: Jueves | E189: 25 | F189: Octubre | G189: 2018 | H189: Jueves 25 de Octubre del 2018 | I189: 118405791 | J189: Jose Ochoa Infante | K189: 307 | L189: 307 | M189: 0 | N189: TRESCIENTOS SIETE | O189: 0A987
A190: 10189 | B190: 2018420 | C190: 2018-10-25 | D190: Jueves | E190: 25 | F190: Octubre | G190: 2018 | H190: Jueves 25 de Octubre del 2018 | I190: 118405791 | J190: Eduardo Marmoles Urrea | K190: 31 | L190: 31 | M190: 0 | N190: TREINTA Y UNO | O190: 0A987 | P190: =SUM(K177:K190) -> 2658.1
A191: 10190 | B191: 2018430 | C191: 2018-10-31 | D191: Miércoles | E191: 31 | F191: Octubre | G191: 2018 | H191: =CONCATENATE(D191," ",E191," de ",F191," del ",G191) -> Miércoles 31 de Octubre del 2018 | I191: 09017700 | J191: Andrés Manrique Fernandez | K191: 500 | L191: =INT(K191) -> 500 | M191: =ROUND((K191-INT(K191))*100,2) -> 0 | N191: =UPPER(NumLet(INT(K191))) -> QUINIENTOS | O191: 0A98E
A192: 10191 | B192: 2018430 | C192: 2018-10-31 | D192: Miércoles | E192: 31 | F192: Octubre | G192: 2018 | H192: Miércoles 31 de Octubre del 2018 | I192: 25486899 | J192: Silvia Tapia de Linares | K192: 114.5 | L192: 114 | M192: 50 | N192: =UPPER(NumLet(INT(K192))) -> CIENTO CATORCE | O192: 0A98E
A193: 10192 | B193: 2018430 | C193: 2018-10-31 | D193: Miércoles | E193: 31 | F193: Octubre | G193: 2018 | H193: Miércoles 31 de Octubre del 2018 | I193: 06177146 | J193: Patricio Montañez Pajuelo | K193: 219 | L193: 219 | M193: 0 | N193: DOSCIENTOS DIECINUEVE | O193: 0A98E
A194: 10193 | B194: 2018430 | C194: 2018-10-31 | D194: Miércoles | E194: 31 | F194: Octubre | G194: 2018 | H194: Miércoles 31 de Octubre del 2018 | I194: 07747366 | J194: Eduardo Segura Durand | K194: 10.9 | L194: 10 | M194: 90 | N194: DIEZ | O194: 0A98E
A195: 10194 | B195: 2018430 | C195: 2018-10-31 | D195: Miércoles | E195: 31 | F195: Octubre | G195: 2018 | H195: Miércoles 31 de Octubre del 2018 | I195: 40346824 | J195: Cesar Mendez Mallqui | K195: 46.8 | L195: 46 | M195: 80 | N195: CUARENTA Y SEIS | O195: 0A98E
A196: 10195 | B196: 2018430 | C196: 2018-10-31 | D196: Miércoles | E196: 31 | F196: Octubre | G196: 2018 | H196: Miércoles 31 de Octubre del 2018 | I196: 73946962 | J196: Alejandro Dueñas Palacios | K196: 53.2 | L196: 53 | M196: 20 | N196: CINCUENTA Y TRES | O196: 0A98E
A197: 10196 | B197: 2018430 | C197: 2018-10-31 | D197: =TEXT($C197,"dddd") -> Miércoles | E197: =TEXT($C197,"dd") -> 31 | F197: =TEXT($C197,"mmmm") -> Octubre | G197: =TEXT($C197,"yyyy") -> 2018 | H197: Miércoles 31 de Octubre del 2018 | I197: 80467819 | J197: Juan Marique Vega | K197: 114.5 | L197: 114 | M197: 50 | N197: CIENTO CATORCE | O197: 0A98E
A198: 10197 | B198: 2018430 | C198: 2018-10-31 | D198: Miércoles | E198: 31 | F198: Octubre | G198: 2018 | H198: Miércoles 31 de Octubre del 2018 | I198: 45259265 | J198: Irving Huaringa Bustos | K198: 91.5 | L198: 91 | M198: 50 | N198: NOVENTA Y UNO | O198: 0A98E
A199: 10198 | B199: 2018430 | C199: 2018-10-31 | D199: Miércoles | E199: 31 | F199: Octubre | G199: 2018 | H199: Miércoles 31 de Octubre del 2018 | I199: 146339198 | J199: Pedro Hostos Salazar | K199: 55 | L199: 55 | M199: 0 | N199: CINCUENTA Y CINCO | O199: 0A98E
A200: 10199 | B200: 2018430 | C200: 2018-10-31 | D200: Miércoles | E200: 31 | F200: Octubre | G200: 2018 | H200: Miércoles 31 de Octubre del 2018 | I200: 06875877 | J200: Miguel Tejada Llauce | K200: 353.6 | L200: 353 | M200: 60 | N200: TRESCIENTOS CINCUENTA Y TRES | O200: 0A98E
... 3448 more rows

Sheet Hoja2

Sheet Hoja3
